bitfinex-derivatives/quotes_BTCF0:USTF0_20260104
["timestamp","ask_amount","ask_price","bid_price","bid_amount"]
[1767522000841,0.010926,91563.0,91555.0,0.01154513]
[1767522001550,0.010926,91565.0,91555.0,0.01154513]
[1767522001744,0.02432485,91564.0,91555.0,0.01154513]
[1767522001956,0.02432485,91563.0,91555.0,0.01154513]
[1767522002145,0.010926,91565.0,91555.0,0.01154513]
[1767522002355,0.02432483,91564.0,91555.0,0.01154513]
[1767522002653,0.02432483,91563.0,91555.0,0.01154513]
[1767522002850,0.010926,91565.0,91555.0,0.01154513]
[1767522003156,0.02432481,91564.0,91555.0,0.01154513]
[1767522003354,0.02432481,91563.0,91555.0,0.01154513]
[1767522003558,0.010926,91565.0,91555.0,0.01154513]
[1767522005848,0.10552425,91570.0,91555.0,0.01154513]
[1767522006049,0.010925,91568.0,91556.0,0.010927]
[1767522006246,0.02432412,91567.0,91556.0,0.010927]
[1767522006557,0.010926,91564.0,91554.0,0.09663014]
[1767522010358,0.010926,91562.0,91554.0,0.09663014]
[1767522014758,0.09459925,91570.0,91551.0,0.01110558]
[1767522014759,0.010926,91560.0,91551.0,0.01110558]
[1767522015061,0.010926,91560.0,91549.0,0.09663014]
[1767522015062,0.010926,91558.0,91549.0,0.09663014]
[1767522021471,0.010927,91553.0,91544.0,0.00917611]
[1767522021661,0.010927,91553.0,91543.0,0.09663014]
[1767522022260,0.010927,91556.0,91543.0,0.09663014]
[1767522022466,0.010927,91556.0,91543.0,0.10580625]
[1767522022771,0.010927,91556.0,91544.0,0.00904994]
[1767522023774,0.010927,91554.0,91544.0,0.00904994]
[1767522024875,0.010927,91552.0,91543.0,0.09663014]
[1767522025373,0.010927,91552.0,91541.0,0.00928155]
[1767522025869,0.010928,91548.0,91541.0,0.00016387]
[1767522026074,0.10552625,91551.0,91541.0,0.00016387]
[1767522028187,0.010928,91549.0,91541.0,0.00016387]
[1767522029176,0.010928,91544.0,91536.0,0.09288]
[1767522029478,0.010928,91542.0,91529.0,0.00218511]
[1767522029679,0.09459925,91540.0,91529.0,0.00218511]
[1767522029878,0.010929,91533.0,91520.0,0.09288]
[1767522030069,0.09459925,91530.0,91515.0,0.09288]
[1767522030881,0.01093,91527.0,91515.0,0.09288]
[1767522031066,0.01093,91525.0,91515.0,0.09288]
[1767522031269,0.01093,91528.0,91515.0,0.103812]
[1767522031874,0.09459925,91530.0,91517.0,0.010931]
[1767522034380,0.02463594,91529.0,91515.0,0.09288]
[1767522035084,0.02463594,91529.0,91516.0,0.010931]
[1767522035782,0.02463594,91529.0,91515.0,0.09288]
[1767522036379,0.10552925,91530.0,91516.0,0.010931]
[1767522036584,0.01093,91530.0,91516.0,0.010931]
[1767522040285,0.00016387,91532.0,91518.0,0.02016248]
[1767522040478,0.00016387,91532.0,91519.0,0.00909652]
[1767522041080,0.00016387,91532.0,91520.0,0.02002752]
[1767522045286,0.01093,91531.0,91520.0,0.02002752]
[1767522046489,0.00016387,91532.0,91520.0,0.02002752]
[1767522047294,0.01109387,91532.0,91520.0,0.02002752]
[1767522047496,0.01109387,91532.0,91520.0,0.010931]
[1767522050994,0.01109387,91532.0,91521.0,0.010931]
[1767522051192,0.01370594,91551.0,91527.0,0.00751955]
[1767522051384,0.010928,91545.0,91538.0,0.00751955]
[1767522051579,0.010927,91550.0,91538.0,0.00751955]
[1767522051778,0.02501922,91549.0,91538.0,0.00751955]
[1767522052001,0.02501922,91548.0,91538.0,0.00751955]
[1767522052193,0.010927,91553.0,91539.0,0.10010041]
[1767522052386,0.010927,91551.0,91542.0,0.00739036]
[1767522053894,0.010927,91551.0,91541.0,0.09271005]
[1767522055590,0.0248521,91550.0,91541.0,0.09271005]
[1767522055790,0.010927,91551.0,91541.0,0.09271005]
[1767522056087,0.0248521,91550.0,91541.0,0.09271005]
[1767522056291,0.02485762,91549.0,91541.0,0.09271005]
[1767522056492,0.010927,91551.0,91541.0,0.09271005]
[1767522056692,0.02485762,91550.0,91541.0,0.09271005]
[1767522056994,0.02485762,91549.0,91541.0,0.09271005]
[1767522057194,0.010927,91551.0,91541.0,0.09271005]
[1767522057391,0.02486406,91550.0,91541.0,0.09271005]
[1767522057589,0.02486406,91549.0,91541.0,0.09271005]
[1767522057891,0.02486406,91548.0,91541.0,0.09271005]
[1767522058094,0.010927,91551.0,91541.0,0.09271005]
[1767522058289,0.02486406,91550.0,91541.0,0.09271005]
[1767522058489,0.02486406,91549.0,91541.0,0.09271005]
[1767522058689,0.02486406,91548.0,91541.0,0.09271005]
[1767522059001,0.010927,91551.0,91541.0,0.09271005]
[1767522059297,0.02487183,91550.0,91541.0,0.09271005]
[1767522059499,0.02487183,91549.0,91541.0,0.09271005]
[1767522059695,0.02487183,91548.0,91541.0,0.09271005]
[1767522059896,0.010927,91551.0,91541.0,0.09271005]
[1767522060100,0.02487239,91550.0,91541.0,0.09271005]
[1767522060291,0.02487239,91549.0,91541.0,0.09271005]
[1767522060489,0.02487239,91548.0,91539.0,0.00708272]
[1767522060701,0.010927,91551.0,91539.0,0.00708272]
[1767522060902,0.02487176,91550.0,91539.0,0.00708272]
[1767522061100,0.02487176,91549.0,91539.0,0.00708272]
[1767522061302,0.02487176,91548.0,91539.0,0.00708272]
[1767522061600,0.010928,91549.0,91539.0,0.00708272]
[1767522061802,0.02487049,91548.0,91539.0,0.00708272]
[1767522062101,0.01109087,91552.0,91539.0,0.00708272]
[1767522062298,0.02486977,91551.0,91539.0,0.00708272]
[1767522062502,0.02486977,91550.0,91539.0,0.00708272]
[1767522062801,0.02486977,91549.0,91539.0,0.00708272]
[1767522062996,0.02486977,91548.0,91539.0,0.00708272]
[1767522063204,0.01109087,91552.0,91539.0,0.01801172]
[1767522063502,0.02483699,91551.0,91539.0,0.01801172]
[1767522063802,0.02483699,91550.0,91539.0,0.01801172]
[1767522063992,0.02483699,91549.0,91539.0,0.01801172]
[1767522064193,0.02483699,91548.0,91539.0,0.01801172]
[1767522064499,0.01109087,91552.0,91539.0,0.00708272]
[1767522064702,0.03576338,91551.0,91539.0,0.00708272]
[1767522064901,0.02483638,91550.0,91539.0,0.00708272]
[1767522065100,0.03576438,91549.0,91539.0,0.00708272]
[1767522065289,0.02483638,91548.0,91539.0,0.00708272]
[1767522065494,0.02483638,91547.0,91539.0,0.00708272]
[1767522065689,0.02483638,91546.0,91536.0,0.10550573]
[1767522065906,0.01109087,91552.0,91538.0,0.010929]
[1767522066101,0.02483581,91551.0,91538.0,0.010929]
[1767522066306,0.02483581,91550.0,91538.0,0.010929]
[1767522066506,0.02483581,91549.0,91538.0,0.010929]
[1767522066800,0.00016387,91552.0,91540.0,0.00502938]
[1767522067005,0.1060304,91559.0,91544.0,0.00502938]
[1767522068307,0.1060304,91559.0,91546.0,0.010928]
[1767522069707,0.010927,91558.0,91546.0,0.010928]
[1767522071702,0.010927,91558.0,91546.0,0.01582308]
[1767522074110,0.010927,91557.0,91546.0,0.00489508]
[1767522075611,0.1060304,91559.0,91546.0,0.01582308]
[1767522076711,0.0021844,91559.0,91547.0,0.00410324]
[1767522076912,0.00016387,91561.0,91551.0,0.010927]
[1767522078615,0.00016387,91561.0,91549.0,0.010928]
[1767522079017,0.02471777,91560.0,91549.0,0.010928]
[1767522079216,0.02471777,91559.0,91549.0,0.010928]
[1767522079413,0.02471777,91558.0,91549.0,0.010928]
[1767522079611,0.02471777,91557.0,91549.0,0.010928]
[1767522079910,0.02471777,91556.0,91549.0,0.010928]
[1767522080110,0.02471777,91555.0,91549.0,0.010928]
[1767522080315,0.02471777,91554.0,91549.0,0.010928]
[1767522080516,0.02471777,91553.0,91549.0,0.010928]
[1767522080724,0.00016387,91561.0,91549.0,0.010928]
[1767522083729,0.00016387,91561.0,91550.0,0.010927]
[1767522084138,0.00016387,91561.0,91548.0,0.09867997]
[1767522084329,0.00016387,91561.0,91549.0,0.00442648]
[1767522084529,0.00016387,91561.0,91551.0,0.00442648]
[1767522085035,0.00016387,91561.0,91553.0,0.010927]
[1767522085231,0.09288,91570.0,91554.0,0.00432702]
[1767522085732,0.09288,91570.0,91553.0,0.10550373]
[1767522086428,0.010925,91567.0,91554.0,0.00420846]
[1767522088331,0.010925,91570.0,91556.0,0.00395843]
[1767522088534,0.010925,91570.0,91558.0,0.010926]
[1767522088840,0.010924,91575.0,91561.0,0.010926]
[1767522089231,0.010925,91573.0,91559.0,0.00377566]
[1767522090046,0.010925,91573.0,91560.0,0.010926]
[1767522091036,0.01143787,91589.0,91568.0,0.00396978]
[1767522091244,0.01143787,91592.0,91574.0,0.00396978]
[1767522091542,0.09288,91593.0,91575.0,0.010924]
[1767522091543,0.010923,91589.0,91575.0,0.010924]
[1767522092635,0.0244047,91588.0,91575.0,0.010924]
[1767522092835,0.0244047,91587.0,91575.0,0.010924]
[1767522093134,0.010923,91589.0,91575.0,0.010924]
[1767522093330,0.02439786,91588.0,91575.0,0.010924]
[1767522093535,0.010923,91589.0,91575.0,0.010924]
[1767522093834,0.02439786,91588.0,91575.0,0.010924]
[1767522094035,0.010923,91589.0,91575.0,0.010924]
[1767522094236,0.02439786,91588.0,91575.0,0.010924]
[1767522094443,0.010923,91589.0,91575.0,0.010924]
[1767522094641,0.02439278,91588.0,91575.0,0.010924]
[1767522094849,0.010923,91589.0,91575.0,0.010924]
[1767522095042,0.02439278,91588.0,91575.0,0.010924]
[1767522095237,0.010923,91589.0,91575.0,0.010924]
[1767522096544,0.09288,91593.0,91578.0,0.00369939]
[1767522096743,0.09288,91593.0,91584.0,0.010923]
[1767522097046,0.09288,91593.0,91583.0,0.010923]
[1767522097848,0.00016378,91597.0,91583.0,0.010923]
[1767522098741,0.00016378,91597.0,91585.0,0.010923]
[1767522099045,0.00016378,91597.0,91587.0,0.010923]
[1767522099945,0.00016378,91597.0,91583.0,0.01446836]
[1767522100446,0.00016378,91597.0,91585.0,0.010923]
[1767522100644,0.00016378,91597.0,91587.0,0.010923]
[1767522100838,0.01135181,91609.0,91588.0,0.00331497]
[1767522101040,0.1285927,91608.0,91588.0,0.00331497]
[1767522101349,0.010922,91598.0,91585.0,0.010923]
[1767522102239,0.10158503,91605.0,91585.0,0.010923]
[1767522102447,0.010921,91601.0,91585.0,0.010923]
[1767522102643,0.09023322,91616.0,91599.0,0.00292552]
[1767522102842,0.09288,91615.0,91599.0,0.00292552]
[1767522103148,0.01135181,91614.0,91598.0,0.010922]
[1767522103343,0.01092,91613.0,91595.0,0.01384752]
[1767522103550,0.02227181,91613.0,91597.0,0.010922]
[1767522105540,0.01135181,91610.0,91597.0,0.010922]
[1767522106341,0.09023322,91611.0,91597.0,0.010922]
[1767522106851,0.01092,91613.0,91597.0,0.010922]
[1767522107047,0.01092,91613.0,91599.0,0.010922]
[1767522107451,0.01135181,91610.0,91596.0,0.010922]
[1767522107644,0.09023322,91612.0,91590.0,0.010923]
[1767522107645,0.01135181,91609.0,91590.0,0.010923]
[1767522107841,0.01135181,91607.0,91587.0,0.09951983]
[1767522108042,0.010921,91600.0,91587.0,0.09951983]
[1767522108546,0.01135181,91603.0,91586.0,0.09288]
[1767522109252,0.010922,91600.0,91586.0,0.103803]
[1767522111749,0.01135181,91600.0,91586.0,0.103803]
[1767522112554,0.01135181,91600.0,91586.0,0.09288]
[1767522112760,0.010922,91597.0,91586.0,0.09288]
[1767522112950,0.010922,91594.0,91586.0,0.09288]
[1767522113453,0.01135181,91597.0,91586.0,0.09288]
[1767522114355,0.010922,91595.0,91586.0,0.09288]
[1767522115360,0.01135181,91597.0,91586.0,0.09288]
[1767522115856,0.01135181,91597.0,91585.0,0.010923]
[1767522117358,0.01135181,91597.0,91586.0,0.010923]
[1767522119058,0.09451704,91600.0,91586.0,0.010923]
[1767522119059,0.010922,91598.0,91586.0,0.010923]
[1767522119261,0.11678985,91600.0,91586.0,0.010923]
[1767522119561,0.01135181,91599.0,91586.0,0.010923]
[1767522120458,0.0104096,91598.0,91586.0,0.010923]
[1767522122158,0.10955596,91593.0,91582.0,0.00016378]
[1767522122363,0.0104096,91587.0,91568.0,0.09284]
[1767522122559,0.0104096,91582.0,91568.0,0.09284]
[1767522122757,0.0104096,91577.0,91563.0,0.010926]
[1767522123156,0.0104096,91577.0,91560.0,0.09284]
[1767522123352,0.0104096,91575.0,91560.0,0.09284]
[1767522123560,0.0213336,91575.0,91561.0,0.010926]
[1767522124161,0.0104096,91575.0,91561.0,0.010926]
[1767522124365,0.0104096,91575.0,91563.0,0.010926]
[1767522124663,0.09914636,91576.0,91563.0,0.010926]
[1767522124862,0.09914636,91576.0,91565.0,0.010926]
[1767522125953,0.0104096,91573.0,91563.0,0.010926]
[1767522126365,0.09914636,91574.0,91563.0,0.010926]
[1767522126561,0.09914636,91574.0,91565.0,0.010926]
[1767522127061,0.09914636,91574.0,91562.0,0.010926]
[1767522127865,0.0104096,91571.0,91560.0,0.09284]
[1767522128063,0.0104096,91570.0,91559.0,0.00016378]
[1767522128366,0.0104096,91570.0,91555.0,0.010927]
[1767522128367,0.0104096,91566.0,91555.0,0.010927]
[1767522129367,0.010926,91565.0,91553.0,0.09284]
[1767522129668,0.0104096,91566.0,91553.0,0.103767]
[1767522129861,0.0104096,91566.0,91555.0,0.010927]
[1767522130058,0.0104096,91566.0,91553.0,0.09284]
[1767522130258,0.09914636,91567.0,91553.0,0.09284]
[1767522131166,0.10492664,91570.0,91553.0,0.09284]
[1767522131376,0.0104096,91569.0,91556.0,0.010927]
[1767522131559,0.0104096,91569.0,91558.0,0.010926]
[1767522132657,0.0104096,91569.0,91555.0,0.010927]
[1767522132858,0.0104096,91569.0,91557.0,0.010927]
[1767522133270,0.20291136,91572.0,91553.0,0.09284]
[1767522133271,0.0104096,91565.0,91553.0,0.09284]
[1767522133474,0.10955596,91562.0,91551.0,0.00016378]
[1767522133665,0.0104096,91561.0,91551.0,0.00016378]
[1767522134177,0.010926,91560.0,91551.0,0.00016378]
[1767522134468,0.0104096,91556.0,91544.0,0.010928]
[1767522134777,0.0104096,91552.0,91532.0,0.00030505]
[1767522135074,0.09451704,91550.0,91533.0,0.09288]
[1767522135274,0.09451704,91550.0,91538.0,0.010929]
[1767522136477,0.0104096,91552.0,91538.0,0.010929]
[1767522136675,0.09451704,91550.0,91538.0,0.010929]
[1767522137476,0.00016378,91553.0,91540.0,0.010929]
[1767522139362,0.09451704,91550.0,91540.0,0.010929]
[1767522140077,0.10492664,91550.0,91539.0,0.010929]
[1767522140376,0.10492664,91550.0,91536.0,0.010929]
[1767522141278,0.0213376,91549.0,91536.0,0.010929]
[1767522141780,0.0104096,91549.0,91537.0,0.010929]
[1767522143077,0.0104096,91548.0,91537.0,0.010929]
[1767522143679,0.09914636,91549.0,91537.0,0.010929]
[1767522144079,0.09451704,91550.0,91537.0,0.010929]
[1767522144583,0.10492664,91550.0,91537.0,0.010929]
[1767522145777,0.09451704,91550.0,91537.0,0.010929]
[1767522146379,0.10955596,91547.0,91535.0,0.010929]
[1767522146589,0.0104096,91545.0,91535.0,0.010929]
[1767522148086,0.09914636,91546.0,91535.0,0.010929]
[1767522148476,0.09914636,91546.0,91533.0,0.09288]
[1767522148877,0.0104096,91548.0,91533.0,0.09288]
[1767522149073,0.0104096,91548.0,91536.0,0.010929]
[1767522149987,0.0104096,91548.0,91538.0,0.010929]
[1767522150188,0.09451704,91550.0,91533.0,0.19255206]
[1767522150381,0.09451704,91550.0,91543.0,0.010928]
[1767522150583,0.09468082,91553.0,91543.0,0.010928]
[1767522151686,0.10415884,91553.0,91543.0,0.010928]
[1767522152089,0.10415884,91553.0,91533.0,0.19255206]
[1767522152388,0.09451704,91550.0,91541.0,0.010928]
[1767522152588,0.09451704,91550.0,91533.0,0.19255206]
[1767522153289,0.09451704,91550.0,91542.0,0.010928]
[1767522153490,0.09451704,91550.0,91533.0,0.19255206]
[1767522153791,0.09451704,91550.0,91543.0,0.010928]
[1767522153992,0.09451704,91550.0,91533.0,0.19290084]
[1767522154677,0.09451704,91543.0,91533.0,0.09288]
[1767522154882,0.09451704,91543.0,91532.0,0.00016378]
[1767522154883,0.10423778,91543.0,91532.0,0.00016378]
[1767522155192,0.10423778,91543.0,91533.0,0.010929]
[1767522155392,0.10423778,91543.0,91534.0,0.010929]
[1767522158496,0.00972074,91543.0,91534.0,0.010929]
[1767522159988,0.00972074,91546.0,91534.0,0.010929]
[1767522161196,0.00972074,91545.0,91534.0,0.010929]
[1767522161394,0.00972074,91582.0,91535.0,0.50924186]
[1767522161593,0.010923,91590.0,91559.0,0.09090583]
[1767522161594,0.02064474,91577.0,91559.0,0.09090583]
[1767522161894,0.00972074,91569.0,91554.0,0.09288]
[1767522162197,0.00972074,91569.0,91559.0,0.010926]
[1767522162394,0.00972074,91569.0,91560.0,0.010926]
[1767522163791,0.00972074,91569.0,91557.0,0.010926]
[1767522163989,0.010925,91567.0,91555.0,0.00016378]
[1767522164292,0.09176784,91565.0,91555.0,0.00016378]
[1767522164491,0.00972074,91563.0,91553.0,0.010927]
[1767522165196,0.00972074,91563.0,91555.0,0.010927]
[1767522165396,0.00972074,91563.0,91554.0,0.010927]
[1767522166894,0.09176784,91564.0,91556.0,0.010927]
[1767522167593,0.09176784,91564.0,91549.0,0.09304378]
[1767522167992,0.00972074,91562.0,91554.0,0.010927]
[1767522168901,0.00972074,91562.0,91549.0,0.09304378]
[1767522169689,0.00972074,91562.0,91554.0,0.010927]
[1767522169888,0.00972074,91562.0,91549.0,0.09304378]
[1767522170502,0.09176784,91563.0,91549.0,0.09304378]
[1767522170902,0.00972074,91561.0,91549.0,0.01109078]
[1767522171102,0.10148858,91561.0,91549.0,0.00016378]
[1767522171294,0.10148858,91560.0,91549.0,0.00016378]
[1767522171495,0.00972074,91559.0,91549.0,0.00016378]
[1767522173190,0.00972074,91558.0,91549.0,0.00016378]
[1767522175209,0.00972074,91558.0,91547.0,0.010928]
[1767522176606,0.00972074,91558.0,91545.0,0.010928]
[1767522176806,0.00972074,91558.0,91547.0,0.010928]
[1767522178708,0.00972074,91558.0,91549.0,0.010928]
[1767522179911,0.10148858,91558.0,91543.0,0.00016378]
[1767522180102,0.01103534,91557.0,91547.0,0.010928]
[1767522180301,0.01103534,91557.0,91543.0,0.00016378]
[1767522180504,0.01103534,91557.0,91544.0,0.010928]
[1767522181008,0.01103534,91556.0,91544.0,0.010928]
[1767522181203,0.01103534,91556.0,91546.0,0.010928]
[1767522181600,0.09197492,91557.0,91546.0,0.010928]
[1767522181800,0.09197492,91557.0,91547.0,0.010928]
[1767522185107,0.09197492,91557.0,91543.0,0.00016378]
[1767522185497,0.09197492,91557.0,91546.0,0.010928]
[1767522185700,0.01103534,91555.0,91543.0,0.01109178]
[1767522186001,0.01103534,91554.0,91543.0,0.01109178]
[1767522187300,0.02196234,91554.0,91543.0,0.00016378]
[1767522187506,0.01103534,91549.0,91540.0,0.09288]
[1767522187999,0.01103534,91549.0,91538.0,0.010929]
[1767522190504,0.01103534,91549.0,91539.0,0.010929]
[1767522190711,0.09197492,91550.0,91532.0,0.010929]
[1767522190910,0.09197492,91550.0,91542.0,0.010928]
[1767522191112,0.01103534,91552.0,91542.0,0.010928]
[1767522191715,0.00016378,91553.0,91535.0,0.00124666]
[1767522191913,0.00016378,91553.0,91545.0,0.010928]
[1767522192114,0.010926,91562.0,91545.0,0.00124666]
[1767522192306,0.09288,91561.0,91545.0,0.00124666]
[1767522192506,0.103806,91561.0,91546.0,0.010928]
[1767522193210,0.11484134,91561.0,91546.0,0.010928]
[1767522193415,0.010926,91559.0,91546.0,0.010928]
[1767522193817,0.10301026,91555.0,91535.0,0.00016378]
[1767522194016,0.01103534,91554.0,91535.0,0.00016378]
[1767522194314,0.01103534,91552.0,91535.0,0.00016378]
[1767522194715,0.01103534,91551.0,91538.0,0.010929]
[1767522195310,0.01103534,91548.0,91536.0,0.010929]
[1767522195511,0.01103534,91547.0,91536.0,0.010929]
[1767522196511,0.01103534,91547.0,91538.0,0.010929]
[1767522197024,0.09197492,91548.0,91538.0,0.010929]
[1767522197811,0.09197492,91548.0,91535.0,0.01109278]
[1767522198318,0.10301026,91548.0,91535.0,0.01109278]
[1767522198519,0.10301026,91548.0,91536.0,0.010929]
[1767522201322,0.10301026,91548.0,91535.0,0.00016378]
[1767522201323,0.01103534,91547.0,91535.0,0.01109278]
[1767522201621,0.01103534,91547.0,91535.0,0.00016378]
[1767522201820,0.01103534,91546.0,91535.0,0.00016378]
[1767522202218,0.10301026,91542.0,91531.0,0.10381]
[1767522202417,0.01103534,91541.0,91531.0,0.10381]
[1767522202925,0.01103534,91539.0,91523.0,0.09288]
[1767522203133,0.01103534,91539.0,91525.0,0.01093]
[1767522203423,0.01103534,91539.0,91526.0,0.01093]
[1767522203821,0.01103534,91539.0,91528.0,0.01093]
[1767522204020,0.01103534,91539.0,91523.0,0.09288]
[1767522204021,0.01103534,91539.0,91530.0,0.01093]
[1767522204215,0.09197492,91540.0,91530.0,0.01093]
[1767522206120,0.09197492,91540.0,91523.0,0.09288]
[1767522207326,0.09197492,91540.0,91531.0,0.01093]
[1767522208121,0.01119921,91543.0,91523.0,0.09288]
[1767522208323,0.01119921,91543.0,91532.0,0.010929]
[1767522209516,0.00016387,91543.0,91533.0,0.010929]
[1767522210531,0.01183192,91543.0,91533.0,0.010929]
[1767522211821,0.00016387,91543.0,91533.0,0.010929]
[1767522212932,0.01166805,91541.0,91533.0,0.010929]
[1767522213635,0.09014858,91542.0,91533.0,0.010929]
[1767522213934,0.00016387,91543.0,91533.0,0.010929]
[1767522219040,0.00016387,91543.0,91524.0,0.09921694]
[1767522219238,0.00016387,91543.0,91531.0,0.01093]
[1767522219752,0.00016387,91543.0,91529.0,0.01311511]
[1767522220050,0.010929,91540.0,91529.0,0.00218511]
[1767522220252,0.09464553,91541.0,91529.0,0.00218511]
[1767522223046,0.010929,91540.0,91529.0,0.00218511]
[1767522223249,0.09464553,91541.0,91529.0,0.00218511]
[1767522224947,0.1052556,91541.0,91529.0,0.00218511]
[1767522225136,0.010929,91540.0,91529.0,0.00218511]
[1767522225450,0.010929,91538.0,91529.0,0.00218511]
[1767522226038,0.02153907,91538.0,91529.0,0.00218511]
[1767522226234,0.01061007,91537.0,91523.0,0.103811]
[1767522228048,0.09838354,91535.0,91523.0,0.103811]
[1767522228250,0.01061007,91534.0,91523.0,0.103811]
[1767522228545,0.01093,91532.0,91516.0,0.010931]
[1767522228746,0.02154007,91532.0,91515.0,0.09292]
[1767522229051,0.01061007,91532.0,91516.0,0.010931]
[1767522229250,0.01061007,91531.0,91517.0,0.010931]
[1767522230251,0.01061007,91531.0,91515.0,0.09292]
[1767522230645,0.01061007,91531.0,91516.0,0.010931]
[1767522232253,0.01093,91530.0,91516.0,0.010931]
[1767522232550,0.01061007,91531.0,91518.0,0.010931]
[1767522233445,0.00016387,91543.0,91511.0,0.01102514]
[1767522233446,0.01061007,91523.0,91511.0,0.01102514]
[1767522233652,0.09464553,91522.0,91515.0,0.00016387]
[1767522233836,0.01093,91525.0,91511.0,9.314e-05]
[1767522233837,0.01061007,91527.0,91511.0,9.314e-05]
[1767522234454,0.01061007,91527.0,91512.0,0.010932]
[1767522236049,0.01061007,91527.0,91513.0,0.010932]
[1767522236242,0.01061007,91527.0,91511.0,9.314e-05]
[1767522236657,0.01061007,91527.0,91512.0,0.010932]
[1767522239754,0.01093,91526.0,91511.0,9.314e-05]
[1767522239956,0.01061007,91525.0,91511.0,9.314e-05]
[1767522241059,0.010931,91524.0,91511.0,9.314e-05]
[1767522241350,0.010931,91521.0,91511.0,9.314e-05]
[1767522241559,0.01053375,91520.0,91511.0,9.314e-05]
[1767522241960,0.01053375,91519.0,91511.0,9.314e-05]
[1767522249860,0.09880442,91518.0,91509.0,0.00010941]
[1767522250067,0.01053375,91517.0,91509.0,0.00010941]
[1767522251065,9.314e-05,91516.0,91509.0,0.00010941]
[1767522251663,9.314e-05,91516.0,91509.0,0.01104141]
[1767522251964,9.314e-05,91516.0,91509.0,0.00010941]
[1767522253261,9.314e-05,91516.0,91510.0,0.010932]
[1767522253564,9.314e-05,91516.0,91509.0,0.00010941]
[1767522253770,0.01053375,91515.0,91508.0,0.010932]
[1767522253961,0.01053375,91515.0,91500.0,0.09292]
[1767522254268,0.09889756,91516.0,91500.0,0.09292]
[1767522254269,0.01053375,91513.0,91503.0,0.010933]
[1767522254663,0.01053375,91512.0,91500.0,0.09292]
[1767522254967,0.01053375,91512.0,91503.0,0.010933]
[1767522255156,0.01053375,91512.0,91500.0,0.09292]
[1767522255157,0.01053375,91512.0,91504.0,0.010933]
[1767522255565,0.01053375,91512.0,91500.0,0.09292]
[1767522255970,0.01053375,91512.0,91505.0,0.010933]
[1767522256159,0.01053375,91510.0,91503.0,0.010933]
[1767522256859,0.01053375,91510.0,91500.0,0.09292]
[1767522257254,0.09880442,91511.0,91500.0,0.09292]
[1767522257662,0.09880442,91511.0,91505.0,0.010933]
[1767522258071,0.09880442,91511.0,91502.0,0.010933]
[1767522258270,0.09880442,91511.0,91506.0,0.010933]
[1767522258567,0.09880442,91511.0,91504.0,0.010933]
[1767522259071,0.09880442,91511.0,91500.0,0.09292]
[1767522259367,0.09880442,91511.0,91504.0,0.010933]
[1767522260269,0.09880442,91511.0,91505.0,0.010933]
[1767522261470,0.10933817,91511.0,91505.0,0.010933]
[1767522262661,0.09880442,91511.0,91505.0,0.010933]
[1767522264473,0.09880442,91511.0,91506.0,0.010933]
[1767522264675,0.09880442,91511.0,91504.0,0.010933]
[1767522265078,0.09880442,91511.0,91500.0,0.09292]
[1767522265968,0.09880442,91511.0,91505.0,0.010933]
[1767522266371,0.09880442,91511.0,91504.0,0.010933]
[1767522266573,0.09880442,91511.0,91505.0,0.010933]
[1767522267272,0.09880442,91511.0,91500.0,0.09292]
[1767522267474,0.09880442,91511.0,91506.0,0.010933]
[1767522268376,0.09880442,91511.0,91504.0,0.010933]
[1767522268575,0.09880442,91511.0,91500.0,0.09292]
[1767522268877,0.09880442,91511.0,91506.0,0.010933]
[1767522270668,0.09880442,91511.0,91507.0,0.010932]
[1767522270972,0.10341588,91509.0,91501.0,0.09292]
[1767522271179,0.10341588,91507.0,91498.0,0.09292]
[1767522271371,0.10341588,91507.0,91500.0,0.010933]
[1767522271773,0.0092251,91512.0,91500.0,0.010933]
[1767522272278,0.0092251,91511.0,91500.0,0.010933]
[1767522276277,0.01101283,91509.0,91499.0,0.010933]
[1767522276883,0.19212297,91510.0,91494.0,0.09292]
[1767522277083,0.09747744,91510.0,91494.0,0.09292]
[1767522277285,0.01101283,91513.0,91501.0,0.010933]
[1767522279782,0.01101283,91512.0,91501.0,0.010933]
[1767522280291,0.09464553,91511.0,91501.0,0.010933]
[1767522280491,0.01101283,91512.0,91499.0,0.010933]
[1767522284891,0.01101283,91512.0,91497.0,0.010934]
[1767522285586,0.01101283,91512.0,91499.0,0.010933]
[1767522285793,0.01101283,91509.0,91496.0,0.010934]
[1767522285991,0.02203797,91516.0,91497.0,0.01061666]
[1767522286194,0.02515112,91515.0,91505.0,0.010933]
[1767522286385,9.314e-05,91516.0,91502.0,0.010933]
[1767522287491,0.02515238,91515.0,91502.0,0.010933]
[1767522287693,9.314e-05,91516.0,91502.0,0.010933]
[1767522287895,0.02515238,91515.0,91502.0,0.010933]
[1767522288088,9.314e-05,91516.0,91502.0,0.010933]
[1767522288298,0.02512172,91515.0,91502.0,0.010933]
[1767522288597,9.314e-05,91516.0,91502.0,0.010933]
[1767522288787,0.02512171,91515.0,91502.0,0.010933]
[1767522288987,9.314e-05,91516.0,91502.0,0.010933]
[1767522289288,0.02512171,91515.0,91502.0,0.010933]
[1767522289488,9.314e-05,91516.0,91502.0,0.010933]
[1767522289688,0.02512185,91515.0,91502.0,0.010933]
[1767522289889,9.314e-05,91516.0,91502.0,0.010933]
[1767522290093,0.02512185,91515.0,91502.0,0.010933]
[1767522290288,9.314e-05,91516.0,91502.0,0.010933]
[1767522290489,0.0251221,91515.0,91502.0,0.010933]
[1767522290789,9.314e-05,91516.0,91502.0,0.010933]
[1767522290991,0.0251221,91515.0,91504.0,0.010933]
[1767522291190,9.314e-05,91516.0,91504.0,0.010933]
[1767522291491,0.02512249,91515.0,91504.0,0.010933]
[1767522291792,9.314e-05,91516.0,91504.0,0.010933]
[1767522292099,0.02512248,91515.0,91504.0,0.010933]
[1767522292288,9.314e-05,91516.0,91504.0,0.010933]
[1767522292489,0.02514047,91515.0,91504.0,0.010933]
[1767522292688,9.314e-05,91516.0,91504.0,0.010933]
[1767522292888,0.02514047,91515.0,91504.0,0.010933]
[1767522293090,9.314e-05,91516.0,91504.0,0.010933]
[1767522293290,0.02514111,91515.0,91504.0,0.010933]
[1767522293498,9.314e-05,91516.0,91504.0,0.010933]
[1767522293697,0.02514111,91515.0,91504.0,0.010933]
[1767522293898,9.314e-05,91516.0,91504.0,0.010933]
[1767522294100,0.02514111,91515.0,91504.0,0.010933]
[1767522294293,9.314e-05,91516.0,91504.0,0.010933]
[1767522294498,0.02514187,91515.0,91503.0,0.010933]
[1767522294700,9.314e-05,91516.0,91503.0,0.010933]
[1767522294899,0.02514187,91515.0,91503.0,0.010933]